bitfinex-derivatives/quotes_ETHF0:USTF0_20250116
["timestamp","ask_amount","ask_price","bid_price","bid_amount"]
[1737053816258,4.70986,3329.3,3328.6,3.2078]
[1737053816459,0.60092,3328.8,3328.7,0.60091]
[1737053818173,0.60089,3329.0,3328.9,0.60087]
[1737053818564,0.60091,3328.9,3328.8,0.60089]
[1737053821368,0.60087,3329.1,3329.0,0.60084]
[1737053825267,0.60089,3329.0,3328.9,0.60087]
[1737053825475,3.14239,3329.0,3328.9,0.60087]
[1737053827670,3.14239,3329.0,3328.8,0.60089]
[1737053827671,0.60092,3328.9,3328.8,0.60089]
[1737053828073,2.5415,3329.0,3328.6,3.2078]
[1737053828268,2.5415,3329.0,3328.6,3.80872]
[1737053828269,0.60092,3328.7,3328.6,3.80872]
[1737053829179,0.60092,3328.7,3328.6,0.60092]
[1737053829379,2.29914043,3328.9,3328.2,3.2078]
[1737053829568,0.60098,3328.5,3328.4,0.60096]
[1737053830673,0.60099,3328.3,3328.2,3.2078]
[1737053830878,0.60099,3328.3,3328.2,3.8088]
[1737053832675,0.60099,3328.3,3328.2,0.601]
[1737053834972,6.28687,3328.6,3328.1,7.16758509]
[1737053835274,0.60101,3328.2,3328.1,4.69798509]
[1737053836874,0.60103,3328.1,3328.0,7.04697763]
[1737053837075,4.03389,3328.4,3327.9,4.69798509]
[1737053837076,0.60105,3328.0,3327.9,4.69798509]
[1737053837275,5.21719043,3328.0,3327.9,4.69798509]
[1737053837684,7.10134043,3328.0,3327.7,7.04697763]
[1737053837985,0.60108,3327.8,3327.7,7.04697763]
[1737053838183,0.60118,3327.3,3327.2,7.04697763]
[1737053839088,0.60119,3327.2,3327.1,0.60121]
[1737053839586,0.6012,3327.3,3327.2,0.60118]
[1737053840375,0.6012,3327.3,3326.8,4.59284043]
[1737053840376,0.6012,3327.3,3327.0,3.2078]
[1737053840580,0.60121,3327.2,3327.1,0.6012]
[1737053842984,2.4057,3327.5,3327.0,3.80902]
[1737053842985,0.60121,3327.1,3327.0,3.80902]
[1737053843287,0.60121,3327.1,3327.0,0.60122]
[1737053844386,0.60121,3327.2,3327.1,0.6012]
[1737053844788,0.60123,3327.1,3327.0,0.60122]
[1737053844984,0.60121,3327.1,3327.0,40.8]
[1737053845290,0.60123,3327.0,3326.9,3.80904]
[1737053845486,0.60123,3327.0,3326.9,3.2078]
[1737053845991,0.60123,3327.0,3326.9,3.80905]
[1737053846192,0.60123,3327.0,3326.9,0.60125]
[1737053846691,0.60125,3326.9,3326.8,2.89495]
[1737053846988,0.60125,3326.9,3326.8,2.2937]
[1737053847492,0.60125,3326.9,3326.8,2.89497]
[1737053847989,0.60125,3326.9,3326.8,43.69497]
[1737053850294,2.3228,3327.4,3326.8,4.59284043]
[1737053850496,0.60118,3327.4,3327.3,0.60116]
[1737053852298,0.60118,3327.4,3327.3,2.94876]
[1737053852596,2.4057,3327.5,3327.3,2.3476]
[1737053852794,0.60115,3327.6,3327.5,0.60112]
[1737053853000,3.2078,3328.4,3327.5,2.29914043]
[1737053853192,0.60104,3328.2,3328.1,0.60101]
[1737053856511,0.60103,3328.1,3328.0,2.94864]
[1737053856894,0.60103,3328.2,3328.1,0.60101]
[1737053857091,4.9218,3328.6,3328.0,2.3476]
[1737053857295,0.60099,3328.4,3328.3,0.60098]
[1737053858397,4.9218,3328.6,3328.2,3.2078]
[1737053858695,0.60099,3328.3,3328.2,3.2078]
[1737053858891,0.60099,3328.3,3328.2,3.80881]
[1737053859503,0.60099,3328.3,3328.2,0.60101]
[1737053859703,0.60103,3328.2,3328.1,0.60102]
[1737053859898,4.9218,3328.6,3328.0,2.3476]
[1737053860205,0.60099,3328.4,3328.3,0.60098]
[1737053861497,0.60097,3328.5,3328.4,0.60096]
[1737053862100,0.60097,3328.5,3328.2,3.2078]
[1737053862101,0.60099,3328.3,3328.2,3.8088]
[1737053862300,6.42419,3328.6,3328.0,2.3476]
[1737053862501,0.60103,3328.1,3328.0,2.94863]
[1737053864207,9.63199,3328.6,3328.0,2.3476]
[1737053864407,0.60101,3328.3,3328.2,0.60099]
[1737053865309,0.60101,3328.3,3328.2,3.80879]
[1737053871110,0.60101,3328.3,3328.2,3.2078]
[1737053871305,2.29914043,3328.5,3328.0,1.227]
[1737053871511,0.60107,3327.9,3327.8,0.60108]
[1737053871711,0.60109,3327.8,3327.7,7.0541807]
[1737053871910,3.08849,3327.8,3327.7,7.0541807]
[1737053872107,0.60115,3327.6,3327.5,0.60112]
[1737053873614,1.50258,3328.1,3327.4,3.80204043]
[1737053873818,0.60111,3327.8,3327.7,0.60108]
[1737053877617,0.60113,3327.7,3327.6,0.60109]
[1737053879021,1.50271,3327.9,3327.3,3.2078]
[1737053879219,0.60116,3327.5,3327.4,0.60114]
[1737053879820,1.50271,3327.9,3327.4,0.60114]
[1737053879821,2.3863,3328.0,3327.4,3.80204043]
[1737053880020,2.3863,3328.0,3327.8,3.80887]
[1737053880021,0.60108,3327.9,3327.8,3.80887]
[1737053880218,3.2078,3328.6,3327.8,5.6403]
[1737053880522,0.60103,3328.2,3328.1,0.60101]
[1737053882324,0.60107,3328.0,3327.9,0.60107]
[1737053883720,0.60103,3328.2,3328.1,0.60101]
[1737053884518,0.60107,3328.0,3327.9,0.60104]
[1737053884719,0.60107,3328.0,3327.9,1.82804]
[1737053885016,0.60107,3328.0,3327.9,1.227]
[1737053885622,2.29914043,3328.4,3327.5,7.0541807]
[1737053885827,0.60112,3327.6,3327.5,8.8823107]
[1737053886220,0.60112,3327.6,3327.5,1.82813]
[1737053887825,0.60112,3327.6,3327.5,1.227]
[1737053888126,0.60114,3327.5,3327.4,3.80895]
[1737053890121,0.60114,3327.5,3327.4,3.2078]
[1737053890729,0.60119,3327.2,3327.1,8.8823907]
[1737053890921,0.60119,3327.2,3327.1,7.6553907]
[1737053891227,2.5128,3327.4,3327.0,7.0541807]
[1737053891228,0.60121,3327.1,3327.0,7.0541807]
[1737053892532,0.60121,3327.1,3326.5,2.3581]
[1737053892533,0.6013,3326.6,3326.5,2.3581]
[1737053892734,0.6013,3326.6,3326.5,2.95942]
[1737053893429,0.6013,3326.6,3326.5,0.60132]
[1737053893634,1.50304,3327.1,3326.3,13.78812113]
[1737053893834,0.60134,3326.5,3326.4,0.60133]
[1737053894130,0.60134,3326.4,3326.3,12.0903307]
[1737053894328,0.60134,3326.4,3326.3,11.4889807]
[1737053894526,0.60134,3326.4,3326.3,4.4348]
[1737053895133,0.60134,3326.4,3326.3,3.2078]
[1737053895825,0.60134,3326.4,3326.1,0.60138]
[1737053895826,0.60137,3326.2,3326.1,0.60138]
[1737053897425,0.60141,3326.0,3325.9,6.12942]
[1737053898131,2.4771,3326.3,3325.9,5.528]
[1737053898331,0.60141,3326.1,3326.0,0.6014]
[1737053898729,0.60138,3326.2,3326.1,0.60137]
[1737053899431,4.6442,3326.7,3326.0,2.29914043]
[1737053899736,5.2455,3326.7,3326.6,0.6013]
[1737053899921,5.2455,3326.7,3326.1,1.50347]
[1737053899922,4.6442,3326.7,3326.1,1.50347]
[1737053900123,0.60131,3326.6,3326.5,0.6013]
[1737053904137,4.6442,3326.7,3326.0,2.29914043]
[1737053904334,0.60139,3326.3,3326.2,0.60137]
[1737053905427,0.60135,3326.4,3326.3,0.60133]
[1737053905628,4.6442,3326.7,3326.3,3.2078]
[1737053905838,0.60124,3327.0,3326.9,0.60123]
[1737053906227,0.60122,3327.1,3327.0,0.60121]
[1737053906434,2.85482,3327.1,3327.0,0.60121]
[1737053906640,2.2536,3327.1,3326.7,3.2078]
[1737053906938,0.60125,3327.0,3326.9,0.60124]
[1737053908644,0.60127,3326.9,3326.8,0.60125]
[1737053909435,0.60127,3326.8,3326.7,3.80908]
[1737053909630,0.60127,3326.8,3326.4,2.3504]
[1737053909631,0.6013,3326.7,3326.6,0.60128]
[1737053909836,0.60132,3326.5,3326.4,2.95171]
[1737053910039,0.60132,3326.5,3326.4,0.60131]
[1737053910940,0.60131,3326.7,3326.6,0.60128]
[1737053911244,2.3991,3327.0,3326.6,3.2078]
[1737053911445,0.60124,3327.0,3326.9,0.60125]
[1737053911741,2.2536,3327.1,3327.0,0.60123]
[1737053911938,2.85481,3327.1,3327.0,0.60123]
[1737053913543,2.2536,3327.1,3327.0,0.60123]
[1737053914044,2.85481,3327.1,3327.0,0.60123]
[1737053915135,2.4293,3327.4,3327.0,3.2078]
[1737053915349,0.6012,3327.3,3327.2,0.60118]
[1737053917247,0.60121,3327.1,3327.0,3.80901]
[1737053919249,2.3352,3327.4,3327.0,3.2078]
[1737053919554,1.50271,3327.9,3327.0,4.71085]
[1737053919743,0.60114,3327.6,3327.5,0.60112]
[1737053920452,0.60112,3327.7,3327.6,0.60109]
[1737053923557,0.60112,3327.6,3327.5,3.80893]
[1737053923754,0.60112,3327.6,3327.5,3.2078]
[1737053923953,0.60121,3327.2,3327.1,0.60119]
[1737053925247,2.4825,3327.6,3327.0,4.71087]
[1737053925455,0.60116,3327.4,3327.3,0.60117]
[1737053925756,0.60119,3327.3,3327.2,0.60118]
[1737053926059,0.60119,3327.3,3327.1,3.2078]
[1737053926060,0.60117,3327.4,3327.3,0.60115]
[1737053928761,0.60119,3327.3,3327.2,0.60119]
[1737053929060,0.60119,3327.3,3327.1,3.2078]
[1737053929061,2.4773,3327.3,3327.1,3.2078]
[1737053929255,0.60119,3327.2,3327.1,3.2078]
[1737053929462,0.60119,3327.2,3327.1,3.80901]
[1737053932455,0.60119,3327.2,3327.1,3.2078]
[1737053934458,0.60119,3327.2,3326.7,3.2078]
[1737053934667,0.60128,3326.8,3326.7,3.80906]
[1737053935662,0.60127,3326.9,3326.8,0.60125]
[1737053936361,0.60127,3326.8,3326.7,3.80907]
[1737053937058,2.2694,3327.1,3326.7,3.2078]
[1737053937258,0.60126,3326.9,3326.8,0.60124]
[1737053937469,2.2694,3327.1,3326.7,3.2078]
[1737053937669,0.60122,3327.1,3327.0,0.60123]
[1737053937864,4.798,3327.3,3326.9,2.29914043]
[1737053938060,5.39919,3327.3,3327.2,0.60119]
[1737053940171,2.92189,3327.3,3327.2,0.60119]
[1737053940666,0.60118,3327.3,3327.2,0.60119]
[1737053943774,5.37662,3327.7,3327.6,0.60112]
[1737053944172,5.3766,3327.7,3327.6,0.60112]
[1737053944366,2.9203,3327.7,3327.6,0.60112]
[1737053955080,0.60112,3327.6,3327.5,3.80893]
[1737053957580,4.71023,3328.5,3327.6,1.50281]
[1737053957789,0.60104,3328.2,3328.1,0.601]
[1737053958287,2.3344,3328.8,3328.1,6.73294043]
[1737053958478,7.03015654,3329.0,3328.9,0.60089]
[1737053958777,7.63102654,3329.0,3328.9,3.80869]
[1737053959086,7.63102654,3329.0,3328.9,3.2078]
[1737053959781,0.60087,3329.0,3328.9,9.1083624]
[1737053960381,0.60087,3329.0,3328.9,3.2078]
[1737053962674,0.60087,3329.0,3328.9,3.80869]
[1737053962879,2.91756,3329.1,3329.0,0.60087]
[1737053963380,2.91756,3329.1,3329.0,0.60087]
[1737053964182,3.06174,3329.2,3328.9,3.2078]
[1737053964485,2.3344,3329.4,3328.9,6.73194043]
[1737053964682,3.80855,3329.7,3329.6,0.60076]
[1737053967779,3.2078,3329.7,3329.4,4.7945]
[1737053967989,3.06728,3329.6,3329.5,0.60077]
[1737053968389,0.6008,3329.4,3329.3,3.2078]
[1737053969087,0.6008,3329.4,3329.3,3.80861]
[1737053970288,0.6008,3329.4,3329.3,3.2078]
[1737053970790,0.6008,3329.4,3329.3,3.80861]
[1737053970988,0.6008,3329.4,3329.3,3.2078]
[1737053971489,0.6008,3329.4,3329.3,3.80861]
[1737053972286,2.4665,3329.6,3329.3,3.2078]
[1737053972486,3.06727,3329.6,3329.5,0.60078]
[1737053972682,0.60077,3329.6,3329.5,0.60078]
[1737053972878,0.60076,3329.7,3329.6,0.60075]
[1737053973084,0.60078,3329.6,3329.5,0.60076]
[1737053976388,2.29914043,3329.7,3328.9,3.2078]
[1737053976588,0.60085,3329.1,3328.9,6.8445]
[1737053976888,0.60085,3329.1,3329.0,2.98697]
[1737053978492,0.60087,3329.0,3328.9,3.2078]
[1737053978688,2.91097,3329.0,3328.9,3.2078]
[1737053979195,0.60094,3328.6,3328.5,1.82595]
[1737053980192,0.60096,3328.5,3328.4,3.2078]
[1737053980392,4.6884,3328.5,3328.2,2.3196]
[1737053980687,0.60103,3328.2,3328.1,0.60102]
[1737053981198,0.60103,3328.1,3328.0,1.82504]
[1737053981493,0.60103,3328.1,3328.0,0.60104]
[1737053984592,0.60105,3328.0,3327.9,3.2078]
[1737053986698,1.5026,3328.1,3327.6,0.60111]
[1737053986891,0.60112,3327.6,3327.5,3.80893]
[1737053987092,2.29914043,3328.2,3327.5,3.2078]
[1737053987293,2.3538,3327.9,3327.7,0.60109]
[1737053987488,2.3538,3327.9,3327.5,3.2078]
[1737053987693,0.60112,3327.6,3327.5,3.2078]
[1737053987894,0.60112,3327.6,3327.2,2.2933]
[1737053987895,0.60118,3327.3,3327.2,2.2933]
[1737053988100,2.29914043,3327.3,3326.9,4.71917382]
[1737053988400,4.71064,3327.6,3326.9,4.71917382]
[1737053988401,2.90037043,3327.0,3326.9,4.71917382]
[1737053989199,2.29914043,3327.0,3326.7,2.4027]
[1737053989405,0.60127,3326.8,3326.7,3.00397]
[1737053989594,0.60127,3326.8,3326.7,2.4027]
[1737053989901,2.29914043,3327.0,3326.6,3.2078]
[1737053990101,0.60128,3326.7,3326.6,3.8091]
[1737053990398,7.0162,3327.2,3326.6,3.2078]
[1737053990595,0.60126,3326.9,3326.8,0.60125]
[1737053990901,7.0162,3327.2,3326.9,0.60123]
[1737053990902,0.60123,3327.0,3326.9,0.60123]
[1737053992002,0.60122,3327.1,3327.0,0.60123]
[1737053992797,0.60124,3327.0,3326.9,0.60123]
[1737053993003,0.60122,3327.1,3327.0,0.60121]
[1737053994005,4.6288,3327.2,3327.0,3.2078]
[1737053994307,0.60118,3327.3,3327.2,0.60118]
[1737053994996,2.4646,3327.5,3327.1,2.4112]
[1737053995197,0.60119,3327.2,3327.1,0.6012]
[1737053995603,0.60121,3327.1,3327.0,3.80902]
[1737053996001,0.6012,3327.2,3327.1,0.6012]
[1737053997011,0.60121,3327.1,3327.0,3.80902]
[1737053998408,2.4646,3327.5,3327.0,3.80902]
[1737053998409,0.60121,3327.2,3327.1,0.6012]
[1737054000212,2.4646,3327.5,3327.0,3.2078]
[1737054000408,2.4646,3327.5,3327.1,0.6012]
[1737054000614,0.60119,3327.2,3327.1,0.6012]
[1737054000808,0.60121,3327.1,3327.0,3.2078]
[1737054001002,3.2078,3327.2,3326.9,2.2562]
[1737054001313,0.60137,3326.3,3326.2,3.80916]
[1737054001605,0.60137,3326.3,3325.8,9.9834207]
[1737054001813,0.60139,3326.1,3325.8,9.9834107]
[1737054002016,2.90053043,3326.1,3325.8,9.3819807]
[1737054002216,2.90053043,3326.1,3325.8,7.0541807]
[1737054002823,0.60145,3325.8,3325.7,5.03425]
[1737054003214,0.60145,3325.8,3325.7,3.2078]
[1737054004313,0.60151,3325.5,3325.4,0.60152]
[1737054004517,2.29914043,3325.5,3325.0,2.453]
[1737054004815,0.60152,3325.4,3325.3,0.60152]
[1737054005018,2.29914043,3325.5,3325.0,2.453]
[1737054005206,4.7524,3325.4,3325.0,2.453]
[1737054005412,0.60149,3325.6,3325.5,0.6015]
[1737054005616,0.60151,3325.5,3325.4,0.60151]
[1737054006017,2.29914043,3325.6,3325.0,2.453]
[1737054006316,0.60157,3325.1,3325.0,3.05458]
[1737054006914,0.60159,3325.0,3324.9,3.80939]
[1737054007115,0.60159,3325.1,3325.0,0.60158]
[1737054007316,0.60159,3325.0,3324.9,3.2078]
[1737054007518,0.60161,3324.9,3324.5,5.03446]
[1737054007717,0.60166,3324.7,3324.6,0.60166]
[1737054007918,0.60166,3324.7,3324.5,4.4328]
[1737054007919,0.60166,3324.6,3324.5,4.4328]
[1737054008622,0.60166,3324.6,3324.5,3.2078]
[1737054008816,2.29914043,3324.7,3324.1,45.2328]
[1737054009118,3.93145,3325.1,3324.1,44.0078]
[1737054009119,0.60174,3324.3,3324.1,44.0078]
[1737054009320,0.60172,3324.3,3324.1,3.2078]
[1737054009515,0.60172,3324.3,3324.1,3.80954]
[1737054009718,4.61584043,3324.4,3324.1,3.2078]
[1737054009920,2.3167,3324.4,3324.3,0.60172]
[1737054010217,0.60167,3324.6,3324.1,3.2078]
[1737054010411,0.60167,3324.6,3324.5,0.60168]
[1737054010814,0.60167,3324.6,3324.5,40.8]
[1737054011014,2.29914043,3324.7,3324.5,40.8]
[1737054011210,0.60166,3324.6,3324.5,41.40167]
[1737054011415,9.49734043,3325.0,3324.5,41.40167]
[1737054011611,0.60166,3324.7,3324.5,41.40167]
[1737054011815,0.60165,3324.7,3324.5,41.40167]
[1737054012315,9.49734043,3325.0,3324.5,40.8]
[1737054012517,0.60164,3324.8,3324.6,0.60165]
[1737054013120,9.49734043,3325.0,3324.5,40.8]
[1737054013320,3.2078,3325.3,3324.6,1.50417]
[1737054013521,4.5568,3325.5,3325.0,3.2078]
[1737054013720,4.5568,3325.5,3325.4,0.60152]
[1737054013923,4.5568,3325.5,3325.0,3.2078]
[1737054014223,0.60156,3325.2,3325.0,3.80938]
[1737054014525,2.2592,3325.4,3325.0,3.2078]
[1737054014726,0.60155,3325.3,3325.1,0.60157]
[1737054014919,2.2592,3325.4,3325.0,3.2078]
[1737054015224,0.60157,3325.1,3325.0,3.2078]
[1737054015421,2.29914043,3325.3,3324.7,3.5703]
[1737054015617,0.60162,3324.9,3324.8,0.60162]
[1737054015818,0.60163,3324.8,3324.7,1.82664]
[1737054016019,5.50694043,3325.0,3324.3,2.3219]
[1737054016223,2.29914043,3324.5,3324.2,3.2078]
[1737054016425,0.60171,3324.4,3324.3,0.6017]
[1737054016626,0.60172,3324.3,3324.2,3.80953]
[1737054016824,0.60172,3324.3,3324.2,3.2078]
[1737054018024,0.60172,3324.4,3324.3,0.60172]
[1737054018322,5.50694043,3324.5,3323.8,3.2078]
[1737054018529,2.90093043,3323.9,3323.8,3.2078]
[1737054018725,3.80363043,3323.9,3323.4,3.2078]
[1737054019032,6.9761,3323.8,3323.4,3.2078]
[1737054019229,0.60186,3323.5,3323.4,3.2078]
[1737054019430,2.29914043,3323.6,3323.2,0.6019]
[1737054019624,0.60186,3323.5,3323.4,3.2078]
[1737054019934,0.60186,3323.5,3323.4,3.80968]
[1737054020138,3.2078,3324.9,3323.4,6.73194043]
[1737054020431,0.60173,3324.3,3324.2,0.60173]
[1737054020731,0.60173,3324.3,3324.2,43.69413]
[1737054021230,0.60173,3324.3,3324.2,40.8]
[1737054021429,0.60173,3324.3,3324.1,3.2078]
[1737054021430,0.60174,3324.2,3324.1,3.2078]
[1737054021729,0.60182,3323.8,3323.6,5.5002]
[1737054021933,2.29914043,3324.0,3323.6,5.5002]
[1737054022233,2.90097043,3323.7,3323.6,3.2078]
[1737054022735,0.60183,3323.7,3323.6,3.80964]
[1737054023231,2.3605,3324.1,3323.6,3.2078]
[1737054023530,4.23307,3324.9,3324.2,0.60174]
[1737054023531,2.29914043,3324.8,3324.2,0.60174]
[1737054023729,4.8928,3324.8,3324.5,0.60168]
[1737054023927,2.29914043,3325.2,3324.5,3.2078]
[1737054024122,0.6016,3325.0,3324.9,0.60159]
[1737054024730,2.4954,3325.1,3324.6,2.4209]
[1737054024926,0.6016,3325.0,3324.9,0.60159]
[1737054025130,0.60162,3324.9,3324.8,0.60162]
[1737054027839,2.4954,3325.1,3324.8,0.60162]
[1737054028045,0.60158,3325.1,3325.0,0.60159]
[1737054028241,0.60153,3325.4,3325.3,0.60153]
[1737054028443,2.4235,3325.5,3324.9,3.2078]
[1737054028647,0.60153,3325.4,3325.3,0.60153]
[1737054029741,2.4235,3325.5,3325.3,0.60153]
[1737054029946,2.4235,3325.5,3325.4,0.60152]
[1737054029947,0.60151,3325.5,3325.4,0.60152]
[1737054030450,0.60148,3325.6,3325.5,0.6015]
[1737054030749,5.50694043,3325.8,3325.7,0.60146]
[1737054030750,3.80926,3325.8,3325.7,0.60146]
[1737054031141,3.80926,3325.8,3325.4,3.2078]
[1737054031142,2.4669,3326.2,3325.5,2.3834]
[1737054031347,2.4669,3326.2,3325.8,3.2078]
[1737054031545,3.06828,3326.2,3326.1,0.60139]
[1737054031750,0.6014,3326.1,3326.0,0.6014]
[1737054031950,3.06829,3326.2,3326.1,0.60139]
[1737054032252,3.2078,3326.4,3325.8,3.2078]
[1737054032544,3.01313,3326.5,3326.4,0.60134]
[1737054032752,2.4118,3326.5,3326.0,2.29914043]
[1737054033142,3.01312,3326.5,3326.4,0.60134]
[1737054033949,0.60132,3326.5,3326.4,0.60134]
[1737054034355,2.4669,3326.7,3326.2,3.2078]
[1737054034647,0.6013,3326.6,3326.2,3.80916]
[1737054034848,0.60136,3326.3,3326.2,3.80916]
[1737054035255,0.60132,3326.5,3326.4,0.60133]
[1737054035548,0.60134,3326.4,3326.3,0.60134]
[1737054036255,0.60132,3326.6,3326.5,0.60131]
[1737054036747,0.60133,3326.5,3326.4,0.60133]
[1737054037157,0.6013,3326.6,3326.3,0.60135]
[1737054037454,0.6013,3326.6,3326.2,3.2078]
[1737054037455,0.60136,3326.3,3326.2,3.2078]
[1737054037654,0.60136,3326.3,3326.2,3.80917]
[1737054038046,0.60136,3326.3,3326.2,3.2078]
[1737054039145,3.04146,3326.3,3326.2,3.2078]
[1737054041455,2.4401,3326.3,3326.2,3.2078]
[1737054042255,3.04146,3326.3,3326.2,3.2078]
[1737054043054,3.04146,3326.3,3325.8,3.80924]
[1737054043055,2.4401,3326.3,3325.8,3.80924]
[1737054043257,2.29914043,3326.1,3325.4,3.2078]
[1737054043458,0.6015,3325.5,3325.4,3.2078]
[1737054043652,0.60152,3325.5,3325.2,6.54472382]
[1737054044063,0.60153,3325.4,3325.2,5.32072382]
[1737054044562,0.60153,3325.4,3325.2,0.60155]
[1737054044759,2.29914043,3325.5,3324.9,5.7081]
[1737054044951,0.60159,3325.0,3324.9,3.2078]
[1737054045158,0.60166,3324.6,3324.5,7.92697382]
[1737054045550,2.29914043,3324.7,3324.3,4.71917382]
[1737054045863,6.10864043,3324.4,3324.3,4.71917382]
[1737054046264,0.60174,3324.2,3324.1,7.0541807]
[1737054046863,0.60174,3324.2,3323.6,14.96476784]
[1737054046864,0.60183,3323.7,3323.6,3.2078]
[1737054047364,0.60188,3323.4,3323.2,0.60191]
[1737054047566,3.2078,3323.9,3323.2,0.60191]
[1737054047567,0.60188,3323.5,3323.2,0.60191]
[1737054047770,3.2078,3323.9,3323.1,4.4318]
[1737054048065,0.60186,3323.6,3323.3,0.60189]
[1737054048258,0.60187,3323.5,3323.2,0.6019]
[1737054048454,0.60186,3323.6,3323.3,0.60189]
[1737054048963,0.60184,3323.7,3323.4,0.60186]
[1737054049263,3.2078,3323.9,3323.3,0.6019]
[1737054049264,0.60186,3323.5,3323.3,0.6019]
[1737054049468,0.60192,3323.3,3323.1,3.2078]
[1737054049963,0.60192,3323.2,3323.1,3.2078]
[1737054050557,0.60196,3323.0,3322.8,3.02998]
[1737054051064,2.95754251,3323.0,3322.6,40.8]
[1737054051361,0.60202,3322.7,3322.5,4.4328]
[1737054051771,0.60202,3322.7,3322.3,2.2643]
[1737054051772,3.2078,3322.6,3322.3,40.8]
[1737054052069,0.6021,3322.2,3322.1,7.0541807]
[1737054052460,0.60217,3321.8,3321.7,40.8]
[1737054052663,2.95754251,3322.0,3321.6,7.0541807]
[1737054052862,0.60219,3321.7,3321.6,7.0541807]
[1737054053065,3.55973251,3321.7,3321.6,7.0541807]
[1737054054057,0.60225,3321.4,3321.1,0.6023]
[1737054054260,0.60225,3321.5,3321.1,0.6023]
[1737054054466,0.60221,3321.6,3321.2,0.60228]
[1737054054669,3.2078,3321.8,3321.4,3.2078]
[1737054055167,3.80998,3321.8,3321.5,0.60222]
[1737054055564,3.2078,3321.8,3321.6,0.60219]
[1737054055769,3.2078,3321.8,3321.5,0.60223]
[1737054055976,3.80998,3321.8,3321.5,0.60223]
[1737054056363,3.2078,3321.8,3321.5,0.60223]
[1737054056666,3.2078,3321.8,3321.7,0.60219]
[1737054056870,3.2078,3321.8,3321.6,0.6022]
[1737054057170,3.2078,3321.8,3321.4,3.2078]
[1737054057369,3.80997,3321.8,3321.7,40.8]
[1737054057758,0.60225,3321.4,3321.1,0.6023]
[1737054057973,2.95754251,3321.6,3321.0,3.2078]
[1737054058165,0.60229,3321.2,3321.0,3.2078]
[1737054058569,2.95754251,3321.6,3320.9,40.8]
[1737054058765,0.60231,3321.1,3320.8,0.60236]
[1737054058968,2.95754251,3321.6,3320.7,2.254]
[1737054059175,2.95754251,3321.3,3320.6,46.2941]
[1737054059471,0.60235,3320.9,3320.6,46.89648]
[1737054059671,0.60233,3321.0,3320.7,0.60236]
[1737054060261,2.95754251,3321.3,3320.6,46.2941]
[1737054060765,2.2546,3321.5,3320.6,46.2941]
[1737054060965,2.2546,3321.5,3321.1,0.60229]
[1737054061171,0.60228,3321.3,3321.0,0.60231]
[1737054061365,0.60228,3321.2,3320.9,0.60233]
[1737054061571,0.6023,3321.1,3320.9,0.60233]
[1737054062075,0.60227,3321.3,3321.1,0.60229]
[1737054062375,0.60229,3321.2,3321.0,0.60231]
[1737054062574,0.60229,3321.2,3320.6,46.2941]
[1737054062575,0.60226,3321.4,3321.2,0.60228]
[1737054062776,0.60223,3321.5,3321.2,0.60228]
[1737054063070,2.4568,3321.7,3321.0,3.2078]
[1737054063373,5.5844,3322.0,3321.4,0.60224]
[1737054063672,5.5844,3322.0,3321.0,3.2078]
[1737054063673,0.6022,3321.7,3321.0,3.2078]
[1737054063878,0.6022,3321.7,3321.6,0.60221]
[1737054064266,0.60218,3321.8,3321.6,0.60219]
[1737054064570,5.5844,3322.0,3321.7,0.60219]
[1737054064763,0.60216,3321.9,3321.7,0.60219]
[1737054064971,5.5844,3322.0,3321.7,0.60219]
[1737054065171,5.5844,3322.0,3321.4,3.2078]
[1737054065172,0.60217,3321.8,3321.6,0.6022]
[1737054065375,5.5844,3322.0,3321.7,0.60219]
[1737054065574,3.2078,3322.0,3321.4,3.2078]
[1737054065774,3.2078,3322.0,3321.9,0.60216]
[1737054065775,3.80994,3322.0,3321.9,0.60216]
[1737054066381,0.60207,3322.4,3321.5,3.97684]
[1737054066567,3.2078,3322.5,3321.8,3.2078]
[1737054066876,3.2078,3323.0,3322.3,2.95754251]
[1737054067075,2.3699,3323.2,3322.4,6.9051]
[1737054067273,0.60199,3322.9,3322.4,9.3363]
[1737054067471,2.3699,3323.2,3322.4,9.3363]
[1737054067677,5.32744251,3323.2,3322.4,9.3363]
[1737054068381,0.60198,3322.9,3322.4,9.3363]
[1737054068571,0.60197,3323.0,3322.8,0.60199]
[1737054068773,5.32744251,3323.2,3322.8,0.60199]
[1737054069078,0.60197,3322.9,3322.8,0.60199]
[1737054069381,0.60194,3323.1,3323.0,0.60195]
[1737054069577,2.95754251,3323.5,3322.5,1.50512]
[1737054069770,0.6019,3323.4,3322.8,3.2078]
[1737054070079,0.60189,3323.4,3323.3,0.60189]
[1737054070285,2.95754251,3323.8,3322.8,3.2078]
[1737054070580,3.7629,3323.9,3322.8,3.2078]
[1737054070581,0.60197,3323.0,3322.9,0.60197]
[1737054070778,4.46221251,3323.5,3322.8,3.2078]
[1737054071079,2.95754251,3323.5,3322.8,3.2078]
[1737054071276,0.60195,3323.1,3323.0,0.60195]
[1737054072182,0.60193,3323.2,3323.1,0.60193]
[1737054072381,2.95754251,3323.5,3322.8,3.2078]
[1737054072680,0.60183,3323.7,3323.6,0.60185]
[1737054072976,4.7295,3324.0,3323.2,3.2078]
[1737054073181,0.60184,3323.7,3323.6,0.60183]
[1737054073378,0.60182,3323.8,3323.7,0.60182]
[1737054073585,2.3612,3324.0,3323.3,2.4659]
[1737054073771,2.3612,3324.0,3323.6,3.2078]
[1737054074087,0.60183,3323.7,3323.6,3.80963]
[1737054075177,0.60183,3323.7,3323.6,3.2078]